fUST/lending_fUST_20240807
["ID","MTS","AMOUNT","RATE_DAILY","PERIOD"]
[334396083,1723029064328,-500.0,0.00033424,14]
[334396084,1723029064342,-1009.34,0.00033424,14]
[334396085,1723029064352,-2387.52,0.00033424,14]
[334396086,1723029064362,-500.0,0.00033424,14]
[334396087,1723029064371,-500.0,0.00033424,14]
[334396088,1723029064382,-500.0,0.00033424,14]
[334396089,1723029064392,-540.78,0.00033424,14]
[334396090,1723029064401,-558.5,0.00033424,14]
[334396091,1723029064411,-2183.56,0.00033424,14]
[334396092,1723029064421,-635.93,0.00033424,14]
[334396093,1723029064431,-614.31,0.00033424,14]
[334396094,1723029064440,-500.0,0.00033424,14]
[334396095,1723029064451,-500.0,0.00033424,14]
[334396096,1723029064461,-1090.48,0.00033424,14]
[334396097,1723029064470,-500.0,0.00033424,14]
[334396098,1723029064479,-983.41,0.00033424,14]
[334396099,1723029064489,-500.0,0.00033424,14]
[334396100,1723029064499,-500.0,0.00033424,14]
[334396101,1723029064509,-500.0,0.00033424,14]
[334396102,1723029064520,-1237.41,0.00033424,14]
[334396103,1723029064530,-500.0,0.00033424,14]
[334396104,1723029064540,-901.85,0.00033424,14]
[334396105,1723029064550,-500.0,0.00033424,14]
[334396106,1723029064562,-500.0,0.00033424,14]
[334396107,1723029064573,-500.0,0.00033424,14]
[334396108,1723029064585,-500.0,0.00033424,14]
[334396109,1723029064595,-705.74,0.00033424,14]
[334396110,1723029064605,-500.0,0.00033424,14]
[334396111,1723029064615,-867.95,0.00033424,14]
[334396112,1723029064625,-500.0,0.00033424,14]
[334396113,1723029064635,-500.0,0.00033424,14]
[334396114,1723029064646,-500.0,0.00033424,14]
[334396115,1723029064657,-890.32,0.00033424,14]
[334396116,1723029064667,-500.0,0.00033424,14]
[334396117,1723029064678,-500.0,0.00033424,14]
[334396118,1723029064688,-500.0,0.00033424,14]
[334396119,1723029064698,-163.72739279,0.00033424,14]
[334396120,1723029064710,-500.0,0.00033424,14]
[334396121,1723029064722,-641.8,0.00033424,14]
[334396122,1723029064732,-500.0,0.00033424,14]
[334396123,1723029064741,-500.0,0.00033424,14]
[334396124,1723029064752,-500.0,0.00033424,14]
[334396125,1723029064763,-663.8,0.00033424,14]
[334396126,1723029064772,-500.0,0.00033424,14]
[334396127,1723029064782,-490.04561637,0.00033424,14]
[334396128,1723029064791,-500.0,0.00033424,14]
[334396129,1723029064802,-500.0,0.00033424,14]
[334396130,1723029064811,-500.0,0.00033424,14]
[334396131,1723029064822,-500.0,0.00033424,14]
[334396132,1723029064832,-500.0,0.00033424,14]
[334396133,1723029064847,-500.0,0.00033424,14]
[334396134,1723029064865,-500.0,0.00033424,14]
[334396135,1723029064875,-610.03,0.00033424,14]
[334396136,1723029064885,-500.0,0.00033424,14]
[334396137,1723029064895,-500.0,0.00033424,14]
[334396138,1723029064905,-500.0,0.00033424,14]
[334396139,1723029064914,-500.0,0.00033424,14]
[334396140,1723029064924,-1049.44,0.00033424,14]
[334396141,1723029064933,-515.57669809,0.00033424,14]
[334396142,1723029064943,-495.97790127,0.00033424,14]
[334396143,1723029064953,-658.92,0.00033424,14]
[334396144,1723029064963,-500.0,0.00033424,14]
[334396145,1723029064973,-634.91,0.00033424,14]
[334396146,1723029064983,-500.0,0.00033424,14]
[334396147,1723029064993,-618.32,0.00033424,14]
[334396148,1723029065006,-841.16,0.00033424,14]
[334396149,1723029065015,-500.0,0.00033424,14]
[334396150,1723029065025,-508.16,0.00033424,14]
[334396151,1723029065035,-543.25,0.00033424,14]
[334396152,1723029065045,-444.00372109,0.00033424,14]
[334396153,1723029065055,-2103.08,0.00033424,14]
[334396154,1723029065065,-500.0,0.00033424,14]
[334396155,1723029065075,-500.0,0.00033424,14]
[334396156,1723029065089,-500.0,0.00033424,14]
[334396157,1723029065099,-500.0,0.00033424,14]
[334396158,1723029065109,-594.60844128,0.00033424,14]
[334396159,1723029065118,-1135.85,0.00033424,14]
[334396160,1723029065130,-500.0,0.00033424,14]
[334396161,1723029065139,-500.0,0.00033424,14]
[334396162,1723029065148,-726.44,0.00033424,14]
[334396163,1723029065158,-606.85,0.00033424,14]
[334396164,1723029065168,-500.0,0.00033424,14]
[334396165,1723029065177,-665.91,0.00033424,14]
[334396166,1723029065187,-782.36,0.00033424,14]
[334396167,1723029065196,-500.0,0.00033424,14]
[334396168,1723029065206,-653.76,0.00033424,14]
[334396169,1723029065215,-500.0,0.00033424,14]
[334396170,1723029065225,-500.0,0.00033424,14]
[334396171,1723029065235,-572.65,0.00033424,14]
[334396172,1723029065245,-552.06,0.00033424,14]
[334396173,1723029065255,-2180.22,0.00033424,14]
[334396174,1723029065265,-723.92,0.00033424,14]
[334396175,1723029065274,-500.0,0.00033424,14]
[334396176,1723029065284,-500.0,0.00033424,14]
[334396177,1723029065294,-531.95,0.00033424,14]
[334396178,1723029065304,-738.14,0.00033424,14]
[334396179,1723029065313,-500.0,0.00033424,14]
[334396180,1723029065323,-500.0,0.00033424,14]
[334396181,1723029065334,-500.0,0.00033424,14]
[334396182,1723029065344,-500.0,0.00033424,14]
[334396183,1723029065354,-500.0,0.00033424,14]
[334396184,1723029065363,-500.0,0.00033424,14]
[334396185,1723029065372,-500.0,0.00033424,14]
[334396186,1723029065381,-500.0,0.00033424,14]
[334396187,1723029065391,-561.59,0.00033424,14]
[334396188,1723029065400,-500.0,0.00033424,14]
[334396189,1723029065409,-500.0,0.00033424,14]
[334396190,1723029065419,-543.41704775,0.00033424,14]
[334396191,1723029065428,-500.0,0.00033424,14]
[334396192,1723029065437,-500.0,0.00033424,14]
[334396193,1723029065448,-526.38,0.00033424,14]
[334396194,1723029065457,-500.0,0.00033424,14]
[334396195,1723029065467,-655.78,0.00033424,14]
[334396196,1723029065475,-500.0,0.00033424,14]
[334396197,1723029065484,-997.18,0.00033424,14]
[334396198,1723029065494,-1854.37,0.00033424,14]
[334396199,1723029065507,-500.0,0.00033424,14]
[334396200,1723029065519,-200.0,0.00033424,7]
[334396201,1723029065529,-1754.86,0.00033424,14]
[334396202,1723029065540,-500.0,0.00033424,14]
[334396203,1723029065550,-500.0,0.00033424,14]
[334396204,1723029065560,-637.98,0.00033424,14]
[334396205,1723029065570,-500.0,0.00033424,14]
[334396206,1723029065579,-2280.75,0.00033424,14]
[334396207,1723029065590,-524.01,0.00033424,14]
[334396208,1723029065600,-500.0,0.00033424,14]
[334396209,1723029065609,-500.0,0.00033424,14]
[334396210,1723029065618,-500.0,0.00033424,14]
[334396211,1723029065627,-500.0,0.00033424,14]
[334396212,1723029065637,-528.8,0.00033424,14]
[334396213,1723029065647,-500.0,0.00033424,14]
[334396214,1723029065656,-500.0,0.00033424,14]
[334396215,1723029065666,-1498.25,0.00033424,14]
[334396216,1723029065675,-500.0,0.00033424,14]
[334396217,1723029065685,-693.96,0.00033424,14]
[334396218,1723029065694,-500.0,0.00033424,14]
[334396219,1723029065703,-500.0,0.00033424,14]
[334396220,1723029065713,-627.54,0.00033424,14]
[334396221,1723029065722,-500.0,0.00033424,14]
[334396222,1723029065731,-3342.3,0.00033424,14]
[334396223,1723029065741,-500.0,0.00033424,14]
[334396224,1723029065750,-531.99,0.00033424,14]
[334396225,1723029065760,-1236.8,0.00033424,14]
[334396226,1723029065769,-500.0,0.00033424,14]
[334396227,1723029065779,-728.37,0.00033424,14]
[334396228,1723029065788,-1161.27,0.00033424,14]
[334396229,1723029065798,-500.0,0.00033424,14]
[334396230,1723029065807,-3031.19,0.00033424,14]
[334396231,1723029065817,-938.86,0.00033424,14]
[334396232,1723029065826,-500.0,0.00033424,14]
[334396233,1723029065838,-500.0,0.00033424,14]
[334396234,1723029065847,-500.0,0.00033424,14]
[334396235,1723029065856,-175.55290944,0.00033424,14]
[334396236,1723029065865,-1919.23,0.00033424,14]
[334396237,1723029065874,-1225.39,0.00033424,14]
[334396238,1723029065884,-500.0,0.00033424,14]
[334396239,1723029065894,-884.22,0.00033424,14]
[334396240,1723029065903,-1075.22,0.00033424,14]
[334396241,1723029065912,-500.0,0.00033424,14]
[334396242,1723029065922,-447.37161848,0.00033424,14]
[334396243,1723029065932,-500.0,0.00033424,14]
[334396244,1723029065941,-500.0,0.00033424,14]
[334396245,1723029065951,-799.55,0.00033424,14]
[334396246,1723029065960,-665.15,0.00033424,14]
[334396247,1723029065970,-500.0,0.00033424,14]
[334396248,1723029065979,-578.83,0.00033424,14]
[334396249,1723029065990,-500.0,0.00033424,14]
[334396250,1723029066003,-500.0,0.00033424,14]
[334396251,1723029066013,-500.0,0.00033424,14]
[334396252,1723029066023,-1407.14,0.00033424,14]
[334396253,1723029066036,-538.06,0.00033424,14]
[334396254,1723029066046,-500.0,0.00033424,14]
[334396255,1723029066058,-500.0,0.00033424,14]
[334396256,1723029066068,-500.0,0.00033424,14]
[334396257,1723029066079,-1237.71,0.00033424,14]
[334396258,1723029066094,-3398.02,0.00033424,14]
[334396259,1723029066104,-2584.23,0.00033424,14]
[334396260,1723029066114,-798.6,0.00033424,14]
[334396261,1723029066124,-604.27,0.00033424,14]
[334396262,1723029066133,-500.0,0.00033424,14]
[334396263,1723029066144,-500.0,0.00033424,14]
[334396264,1723029066153,-500.0,0.00033424,14]
[334396265,1723029066162,-500.0,0.00033424,2]
[334396266,1723029066172,-500.0,0.00033424,14]
[334396267,1723029066182,-500.0,0.00033424,14]
[334396268,1723029066192,-500.0,0.00033424,14]
[334396269,1723029066202,-1456.08,0.00033424,14]
[334396270,1723029066211,-968.66,0.00033424,14]
[334396271,1723029066222,-500.0,0.00033424,14]
[334396272,1723029066240,-1104.57,0.00033424,14]
[334396273,1723029066249,-785.13,0.00033424,14]
[334396274,1723029066260,-1000.35,0.00033424,14]
[334396275,1723029066270,-678.62,0.00033424,14]
[334396276,1723029066280,-2102.23,0.00033424,14]
[334396277,1723029066289,-786.56,0.00033424,14]
[334396278,1723029066299,-1724.83,0.00033424,14]
[334396279,1723029066308,-500.0,0.00033424,14]
[334396280,1723029066318,-1026.47,0.00033424,14]
[334396281,1723029066327,-500.0,0.00033424,14]
[334396282,1723029066341,-2410.79,0.00033424,14]
[334396283,1723029066350,-1027.92,0.00033424,14]
[334396284,1723029066360,-572.28,0.00033424,14]
[334396285,1723029066370,-500.0,0.00033424,14]
[334396286,1723029066379,-827.4,0.00033424,14]
[334396287,1723029066388,-500.0,0.00033424,14]
[334396288,1723029066398,-500.0,0.00033424,14]
[334396289,1723029066408,-500.0,0.00033424,14]
[334396290,1723029066417,-500.0,0.00033424,14]
[334396291,1723029066427,-500.0,0.00033424,14]
[334396292,1723029066436,-1638.94,0.00033424,14]
[334396293,1723029066447,-500.0,0.00033424,14]
[334396294,1723029066456,-2976.45,0.00033424,14]
[334396295,1723029066466,-500.0,0.00033424,14]
[334396296,1723029066476,-728.06,0.00033424,14]
[334396297,1723029066485,-500.0,0.00033424,14]
[334396298,1723029066496,-1275.04,0.00033424,14]
[334396299,1723029066506,-500.0,0.00033424,14]
[334396300,1723029066516,-1187.93,0.00033424,14]
[334396301,1723029066525,-645.93,0.00033424,14]
[334396302,1723029066535,-500.0,0.00033424,14]
[334396303,1723029066544,-500.0,0.00033424,14]
[334396304,1723029066554,-1020.1,0.00033424,14]
[334396305,1723029066564,-500.0,0.00033424,14]
[334396306,1723029066575,-500.0,0.00033424,14]
[334396307,1723029066586,-500.0,0.00033424,14]
[334396308,1723029066595,-581.74,0.00033424,14]
[334396309,1723029066605,-500.0,0.00033424,14]
[334396310,1723029066614,-720.42,0.00033424,14]
[334396311,1723029066624,-500.0,0.00033424,14]
[334396312,1723029066634,-923.4,0.00033424,14]
[334396313,1723029066644,-323.80928339,0.00033424,14]
[334396314,1723029066654,-500.0,0.00033424,14]
[334396315,1723029066663,-500.0,0.00033424,14]
[334396316,1723029066673,-534.66,0.00033424,14]
[334396317,1723029066682,-548.72,0.00033424,14]
[334396318,1723029066692,-671.94,0.00033424,14]
[334396319,1723029066702,-2664.41,0.00033424,14]
[334396320,1723029066713,-500.0,0.00033424,14]
[334396321,1723029066723,-1512.23,0.00033424,14]
[334396322,1723029066732,-1144.37,0.00033424,14]
[334396323,1723029066742,-500.0,0.00033424,14]
[334396324,1723029066752,-518.05,0.00033424,14]
[334396325,1723029066762,-1021.34,0.00033424,14]
[334396326,1723029066771,-500.0,0.00033424,14]
[334396327,1723029066780,-2148.85,0.00033424,14]
[334396328,1723029066790,-500.0,0.00033424,14]
[334396329,1723029066845,-500.0,0.00033424,14]
[334396330,1723029066855,-500.0,0.00033424,14]
[334396331,1723029066865,-1093.31,0.00033424,14]
[334396332,1723029066875,-500.0,0.00033424,14]
[334396333,1723029066884,-2807.44,0.00033424,14]
[334396334,1723029066894,-500.0,0.00033424,14]
[334396335,1723029066903,-500.0,0.00033424,14]
[334396336,1723029066913,-500.0,0.00033424,14]
[334396337,1723029066923,-500.0,0.00033424,14]
[334396338,1723029066933,-647.5,0.00033424,14]
[334396339,1723029066943,-972.5,0.00033424,14]
[334396340,1723029066952,-2896.75,0.00033424,14]
[334396341,1723029066962,-836.81,0.00033424,14]
[334396342,1723029066971,-621.33,0.00033424,14]
[334396343,1723029066980,-500.0,0.00033424,14]
[334396344,1723029066991,-500.0,0.00033424,14]
[334396345,1723029067004,-500.0,0.00033424,14]
[334396346,1723029067014,-877.3,0.00033424,14]
[334396347,1723029067023,-500.0,0.00033424,14]
[334396348,1723029067033,-646.55,0.00033424,14]
[334396349,1723029067043,-811.6,0.00033424,14]
[334396350,1723029067052,-519.26,0.00033424,14]
[334396351,1723029067061,-500.0,0.00033424,14]
[334396352,1723029067072,-594.00436413,0.00033424,14]
[334396353,1723029067081,-3787.31,0.00033424,14]
[334396354,1723029067091,-676.38,0.00033424,14]
[334396355,1723029067102,-500.0,0.00033424,14]
[334396356,1723029067112,-1713.3,0.00033424,14]
[334396357,1723029067121,-500.0,0.00033424,14]
[334396358,1723029067130,-710.82,0.00033424,14]
[334396359,1723029067140,-3403.09,0.00033424,14]
[334396360,1723029067149,-500.0,0.00033424,14]
[334396361,1723029067159,-8008.66,0.00033424,14]
[334396362,1723029067169,-500.0,0.00033424,14]
[334396363,1723029067179,-1695.73,0.00033424,14]
[334396364,1723029067189,-2652.65,0.00033424,14]
[334396365,1723029067199,-500.0,0.00033424,14]
[334396366,1723029067209,-676.41,0.00033424,14]
[334396367,1723029067218,-4726.18,0.00033424,14]
[334396368,1723029067227,-631.77,0.00033424,14]
[334396369,1723029067237,-765.56,0.00033424,14]
[334396370,1723029067246,-524.76,0.00033424,14]
[334396371,1723029067255,-500.0,0.00033424,14]
[334396372,1723029067264,-500.0,0.00033424,14]
[334396373,1723029067274,-596.92,0.00033424,14]
[334396374,1723029067283,-2772.04,0.00033424,14]
[334396375,1723029067292,-500.0,0.00033424,14]
[334396376,1723029067302,-173.53786368,0.00033424,14]
[334396377,1723029067311,-872.47,0.00033424,14]
[334396378,1723029067321,-500.0,0.00033424,14]
[334396379,1723029067330,-500.0,0.00033424,14]
[334396380,1723029067343,-2850.24,0.00033424,14]
[334396381,1723029067352,-2368.38,0.00033424,14]
[334396382,1723029067362,-918.69,0.00033424,14]
[334396383,1723029067371,-1182.98,0.00033424,14]
[334396384,1723029067381,-500.0,0.00033424,14]
[334396385,1723029067391,-500.0,0.00033424,14]
[334396386,1723029067401,-787.24,0.00033424,14]
[334396387,1723029067411,-500.0,0.00033424,14]
[334396388,1723029067421,-500.0,0.00033424,14]
[334396389,1723029067432,-748.79,0.00033424,14]
[334396390,1723029067442,-500.0,0.00033424,14]
[334396391,1723029067452,-1373.61,0.00033424,14]
[334396392,1723029067462,-1732.44,0.00033424,14]
[334396393,1723029067471,-500.0,0.00033424,14]
[334396394,1723029067481,-500.0,0.00033424,14]
[334396395,1723029067491,-1008.03,0.00033424,14]
[334396396,1723029067500,-705.51,0.00033424,14]
[334396397,1723029067510,-500.0,0.00033424,14]
[334396398,1723029067520,-5624.94,0.00033424,14]
[334396399,1723029067530,-4673.31,0.00033424,14]
[334396400,1723029067539,-2102.82,0.00033424,14]
[334396401,1723029067549,-683.38,0.00033424,14]
[334396402,1723029067560,-500.0,0.00033424,14]
[334396403,1723029067570,-500.0,0.00033424,14]
[334396404,1723029067579,-500.0,0.00033424,14]
[334396405,1723029067591,-500.0,0.00033424,14]
[334396406,1723029067601,-500.0,0.00033424,14]
[334396407,1723029067610,-1201.25,0.00033424,14]
[334396408,1723029067620,-5296.6,0.00033424,14]
[334396409,1723029067629,-500.0,0.00033424,14]
[334396410,1723029067639,-500.0,0.00033424,14]
[334396411,1723029067648,-754.45,0.00033424,14]
[334396412,1723029067657,-6120.77,0.00033424,14]
[334396413,1723029067667,-500.0,0.00033424,14]
[334396414,1723029067676,-4115.44,0.00033424,14]
[334396415,1723029067686,-500.0,0.00033424,14]
[334396416,1723029067695,-2356.09,0.00033424,14]
[334396417,1723029067704,-1016.46,0.00033424,14]
[334396418,1723029067714,-1373.79,0.00033424,14]
[334396419,1723029067724,-500.0,0.00033424,14]
[334396420,1723029067733,-27586.24,0.00033424,14]
[334396421,1723029067742,-641.2,0.00033424,14]
[334396422,1723029067751,-551.11,0.00033424,14]
[334396423,1723029067761,-2059.66,0.00033424,14]
[334396424,1723029067770,-884.77,0.00033424,14]
[334396425,1723029067780,-7553.97,0.00033424,14]
[334396426,1723029067789,-1858.24,0.00033424,14]
[334396427,1723029067799,-6001.15,0.00033424,14]
[334396428,1723029067808,-1904.11,0.00033424,14]
[334396429,1723029067817,-500.0,0.00033424,14]
[334396430,1723029067826,-1446.23,0.00033424,14]
[334396431,1723029067838,-3288.86,0.00033424,14]
[334396432,1723029067847,-577.95,0.00033424,14]
[334396433,1723029067858,-4804.12,0.00033424,14]
[334396434,1723029067868,-509.19,0.00033424,14]
[334396435,1723029067877,-873.14,0.00033424,14]
[334396436,1723029067887,-3091.7,0.00033424,14]
[334396437,1723029067896,-743.63,0.00033424,14]
[334396438,1723029067906,-1370.13,0.00033424,14]
[334396439,1723029067915,-18095.21,0.00033424,14]
[334396440,1723029067925,-500.0,0.00033424,14]
[334396441,1723029067935,-1609.93,0.00033424,14]
[334396442,1723029067944,-2388.37,0.00033424,14]
[334396443,1723029067954,-803.5,0.00033424,14]
[334396444,1723029067964,-4013.41,0.00033424,14]
[334396445,1723029067975,-602.9,0.00033424,14]
[334396446,1723029067985,-629.6,0.00033424,14]
[334396447,1723029067999,-2364.63,0.00033424,14]
[334396448,1723029068009,-1184.06,0.00033424,14]
[334396449,1723029068018,-500.0,0.00033424,14]
[334396450,1723029068028,-1150.86,0.00033424,14]
[334396451,1723029068038,-602.76,0.00033424,14]
[334396452,1723029068048,-20279.89,0.00033424,14]
[334396453,1723029068057,-500.0,0.00033424,14]
[334396454,1723029068067,-1372.29,0.00033424,14]
[334396455,1723029068078,-500.0,0.00033424,14]
[334396456,1723029068090,-500.0,0.00033424,14]
[334396457,1723029068100,-634.10686334,0.00033424,14]
[334396458,1723029068109,-11638.4,0.00033424,14]
[334396459,1723029068119,-500.0,0.00033424,14]
[334396460,1723029068128,-500.0,0.00033424,14]
[334396461,1723029068138,-500.0,0.00033424,14]
[334396462,1723029068147,-500.0,0.00033424,2]
[334396463,1723029068156,-1433.62,0.00033424,14]
[334396464,1723029068165,-500.0,0.00033424,14]
[334396465,1723029068175,-761.0,0.00033424,14]
[334396466,1723029068184,-500.0,0.00033424,14]
[334396467,1723029068194,-1750.38,0.00033424,14]
[334396468,1723029068204,-512.68,0.00033424,14]
[334396469,1723029068214,-11428.84,0.00033424,14]
[334396470,1723029068224,-746.77,0.00033424,14]
[334396471,1723029068235,-1433.26,0.00033424,14]
[334396472,1723029068245,-2496.12,0.00033424,14]
[334396473,1723029068254,-2356.96,0.00033424,14]
[334396474,1723029068264,-2975.06,0.00033424,14]
[334396475,1723029068275,-3825.94,0.00033424,14]
[334396476,1723029068284,-500.24183084,0.00033424,14]
[334396477,1723029068294,-1460.03,0.00033424,14]
[334396478,1723029068304,-500.0,0.00033424,14]
[334396479,1723029068313,-1424.73,0.00033424,14]
[334396480,1723029068323,-10865.29,0.00033424,14]
[334396481,1723029068333,-2785.33,0.00033424,14]
[334396482,1723029068346,-500.0,0.00033424,14]
[334396483,1723029068363,-500.0,0.00033424,14]
[334396484,1723029068373,-628.73955544,0.00033424,14]
[334396485,1723029068383,-500.0,0.00033424,14]
[334396486,1723029068393,-536.47,0.00033424,14]
[334396487,1723029068402,-973.08,0.00033424,14]
[334396488,1723029068412,-500.0,0.00033424,14]
[334396489,1723029068422,-6834.28,0.00033424,14]
[334396490,1723029068431,-795.32,0.00033424,14]
[334396491,1723029068442,-1637.95,0.00033424,14]
[334396492,1723029068451,-500.0,0.00033424,14]
[334396493,1723029068462,-500.0,0.00033424,14]
[334396494,1723029068472,-500.0,0.00033424,14]
[334396495,1723029068482,-1190.28,0.00033424,14]
[334396496,1723029068491,-500.0,0.00033424,14]
[334396497,1723029068501,-5590.89,0.00033424,14]
[334396498,1723029068512,-500.0,0.00033424,14]
[334396499,1723029068523,-502.77,0.00033424,14]
[334396500,1723029068533,-2520.26,0.00033424,14]
[334396501,1723029068542,-1612.65,0.00033424,14]
[334396502,1723029068552,-1790.94,0.00033424,14]
[334396503,1723029068562,-500.0,0.00033424,14]
[334396504,1723029068571,-500.0,0.00033424,14]
[334396505,1723029068581,-1565.92,0.00033424,14]
[334396506,1723029068593,-500.0,0.00033424,14]
[334396507,1723029068603,-739.25,0.00033424,14]
[334396508,1723029068612,-500.0,0.00033424,14]
[334396509,1723029068622,-572.13585023,0.00033424,14]
[334396510,1723029068633,-728.33,0.00033424,14]
[334396511,1723029068642,-709.69,0.00033424,14]
[334396512,1723029068652,-656.7,0.00033424,14]
[334396513,1723029068662,-2157.08,0.00033424,14]
[334396514,1723029068671,-500.0,0.00033424,14]
[334396515,1723029068681,-2547.19,0.00033424,14]
[334396516,1723029068690,-1757.34,0.00033424,14]
[334396517,1723029068700,-1138.49,0.00033424,14]
[334396518,1723029068709,-1214.45,0.00033424,14]
[334396519,1723029068718,-943.14,0.00033424,14]
[334396520,1723029068728,-814.59,0.00033424,14]
[334396521,1723029068737,-500.0,0.00033424,14]
[334396522,1723029068747,-1713.75,0.00033424,14]
[334396523,1723029068757,-849.27,0.00033424,14]
[334396524,1723029068766,-500.0,0.00033424,14]
[334396525,1723029068776,-500.0,0.00033424,14]
[334396526,1723029068786,-153.0,0.00033425,2]
[334396527,1723029068795,-153.2214191,0.00033425,2]
[334396528,1723029068805,-294.4233554,0.00033425,2]
[334396529,1723029068814,-294.4233554,0.00033425,2]
[334396530,1723029068824,-153.0,0.00033425,2]
[334396531,1723029068834,-207.1149566,0.00033425,2]
[334396532,1723029068853,-207.1149566,0.00033425,2]
[334396533,1723029068862,-294.4233554,0.00033425,2]
[334396534,1723029068872,-153.0,0.00033425,2]
[334396535,1723029068881,-153.0,0.00033425,2]
[334396536,1723029068891,-294.4233554,0.00033425,2]
[334396537,1723029068901,-207.1149566,0.00033425,2]
[334396538,1723029068910,-207.1149566,0.00033425,2]
[334396539,1723029068920,-153.0,0.00033425,2]
[334396540,1723029068930,-525.9766209,0.00033425,2]
[334396541,1723029068940,-207.1149566,0.00033425,2]
[334396542,1723029068950,-207.1149566,0.00033425,2]
[334396543,1723029068959,-153.0,0.00033425,2]
[334396544,1723029068969,-207.1149566,0.00033425,2]
[334396545,1723029068979,-153.0,0.00033425,2]
[334396546,1723029068989,-153.0,0.00033425,2]
[334396547,1723029069002,-207.1149566,0.00033425,2]
[334396548,1723029069012,-207.1149566,0.00033425,2]
[334396549,1723029069022,-207.1149566,0.00033425,2]
[334396550,1723029069035,-307.7891743,0.00033425,2]
[334396551,1723029069046,-271.4386735,0.00033425,2]
[334396552,1723029069058,-271.4386735,0.00033425,2]
[334396553,1723029069067,-271.4386735,0.00033425,2]
[334396554,1723029069079,-271.4386735,0.00033425,2]
[334396555,1723029069092,-271.4386735,0.00033425,2]
[334396556,1723029069102,-271.4386735,0.00033425,2]
[334396557,1723029069112,-271.4386735,0.00033425,2]
[334396558,1723029069122,-271.4386735,0.00033425,2]
[334396559,1723029069131,-271.4386735,0.00033425,2]
[334396560,1723029069142,-271.4386735,0.00033425,2]
[334396561,1723029069151,-271.4386735,0.00033425,2]
[334396562,1723029069163,-208.65473923,0.00033473,5]
[334396563,1723029069173,-200.0,0.00033473,5]
[334396564,1723029069183,-200.0,0.00033473,5]
[334396565,1723029069193,-200.0,0.00033473,5]
[334396566,1723029069203,-200.0,0.00033473,5]
[334396567,1723029069212,-2081.0,0.00033488,120]
[334396568,1723029069222,-135000.0,0.00033488,36]
[334396569,1723029069232,-1231.73787287,0.00033488,120]
[334396570,1723029069242,-285.15444496,0.00033488,30]
[334396571,1723029069252,-158.71861593,0.00033488,120]
[334396572,1723029069261,-27535.88350684,0.00033488,30]
[334396573,1723029069271,-101914.48246,0.00033488,30]
[334396574,1723029069280,-183.0,0.00033488,30]
[334396575,1723029069290,-1000.0,0.00033488,120]
[334396576,1723029069299,-1000.0,0.00033488,120]
[334396577,1723029069309,-316.5,0.00033488,120]
[334396578,1723029069318,-88779.85042657,0.00033488,2]
[334396579,1723029069328,-849.60292751,0.00033488,2]
[334396580,1723029069339,-300.0,0.00033488,2]
[334396581,1723029069348,-789.03024145,0.00033488,2]
[334396582,1723029069358,-511.40412786,0.00033488,2]